fUSD/lending_fUSD_20250407
["ID","MTS","AMOUNT","RATE_DAILY","PERIOD"]
[357322107,1744006301857,-500.0,0.00273972,120]
[357322108,1744006301867,-500.0,0.00273972,120]
[357322109,1744006301877,-500.0,0.00273972,120]
[357322110,1744006301887,-648.4,0.00273972,120]
[357322111,1744006301896,-500.0,0.00273972,120]
[357322112,1744006301906,-500.0,0.00273972,120]
[357322113,1744006301916,-155.79503977,0.00273972,120]
[357322114,1744006301925,-500.0,0.00273972,120]
[357322115,1744006301935,-500.0,0.00273972,100]
[357322116,1744006301944,-500.0,0.00273972,100]
[357322117,1744006301953,-550.02,0.00273972,100]
[357322118,1744006301963,-500.0,0.00273972,120]
[357322119,1744006301972,-500.0,0.00273972,120]
[357322120,1744006301982,-500.0,0.00273972,10]
[357322121,1744006301991,-500.0,0.00273972,120]
[357322122,1744006302002,-212.84,0.00273972,120]
[357322123,1744006302011,-500.0,0.00273972,120]
[357322124,1744006302020,-500.0,0.00273972,120]
[357322125,1744006302030,-500.0,0.00273972,120]
[357322126,1744006302039,-500.0,0.00273972,120]
[357322127,1744006302047,-500.0,0.00273972,120]
[357322128,1744006302056,-845.49187416,0.00273973,120]
[357322129,1744006302065,-845.49187416,0.00273973,120]
[357322130,1744006302074,-845.49187416,0.00273973,120]
[357322131,1744006302083,-845.49187416,0.00273973,120]
[357322132,1744006302092,-845.49187416,0.00273973,120]
[357322133,1744006302102,-845.49187416,0.00273973,120]
[357322134,1744006302111,-845.49187416,0.00273973,120]
[357322135,1744006302122,-845.49187416,0.00273973,120]
[357322136,1744006302132,-845.49187416,0.00273973,120]
[357322137,1744006302141,-845.49187416,0.00273973,120]
[357322138,1744006302149,-845.49187416,0.00273973,120]
[357322139,1744006302157,-845.49187416,0.00273973,120]
[357322140,1744006302167,-845.49187416,0.00273973,120]
[357322141,1744006302176,-845.49187416,0.00273973,120]
[357322142,1744006302185,-845.49187416,0.00273973,120]
[357322143,1744006302194,-845.49187416,0.00273973,120]
[357322144,1744006302204,-845.49187416,0.00273973,120]
[357322145,1744006302213,-845.49187416,0.00273973,120]
[357322146,1744006302222,-845.49187416,0.00273973,120]
[357322147,1744006302231,-845.49,0.00273973,120]
[357322148,1744006302240,-284.95965631,0.00273973,120]
[357322149,1744006302249,-284.95965631,0.00273973,120]
[357322150,1744006302259,-284.95965631,0.00273973,120]
[357322151,1744006302268,-284.95965631,0.00273973,120]
[357322152,1744006302277,-284.95965631,0.00273973,120]
[357322153,1744006302286,-284.95965631,0.00273973,120]
[357322154,1744006302295,-284.95965631,0.00273973,120]
[357322155,1744006302306,-284.95965631,0.00273973,120]
[357322156,1744006302315,-284.95965631,0.00273973,120]
[357322157,1744006302325,-284.95965631,0.00273973,120]
[357322158,1744006302334,-284.95965631,0.00273973,120]
[357322159,1744006302344,-284.95965631,0.00273973,120]
[357322160,1744006302358,-284.95965631,0.00273973,120]
[357322161,1744006302367,-284.95965631,0.00273973,120]
[357322162,1744006302383,-284.95965631,0.00273973,120]
[357322163,1744006302391,-284.95965631,0.00273973,120]
[357322164,1744006302401,-284.95965631,0.00273973,120]
[357322165,1744006302410,-284.95965631,0.00273973,120]
[357322166,1744006302420,-284.95965631,0.00273973,120]
[357322167,1744006302431,-284.95,0.00273973,120]
[357322168,1744006302441,-151.0,0.00282,120]
[357322169,1744006302450,-500.0,0.00284331,120]
[357322170,1744006302460,-1894.41,0.00284331,120]
[357322171,1744006302470,-500.0,0.00284332,120]
[357322172,1744006302480,-500.0,0.00284332,120]
[357322173,1744006302489,-500.0,0.00284332,120]
[357322174,1744006302498,-500.0,0.00284332,120]
[357322175,1744006302507,-500.0,0.00284332,120]
[357322176,1744006302517,-500.0,0.00284332,120]
[357322177,1744006302526,-500.0,0.00284332,120]
[357322178,1744006302535,-500.0,0.00284332,120]
[357322179,1744006302545,-500.0,0.00284332,120]
[357322180,1744006302554,-500.0,0.00284332,120]
[357322181,1744006302564,-500.0,0.00284332,120]
[357322182,1744006302574,-500.0,0.00284332,120]
[357322183,1744006302583,-500.0,0.00284332,120]
[357322184,1744006302592,-500.0,0.00284332,120]
[357322185,1744006302602,-500.0,0.00284332,120]
[357322186,1744006302611,-500.0,0.00284332,120]
[357322187,1744006302621,-500.0,0.00284332,120]
[357322188,1744006302631,-500.0,0.00284332,120]
[357322189,1744006302640,-500.0,0.00284332,120]
[357322190,1744006302649,-500.0,0.00284332,120]
[357322191,1744006302658,-500.0,0.00284332,120]
[357322192,1744006302668,-500.0,0.00284332,120]
[357322193,1744006302677,-500.0,0.00284332,120]
[357322194,1744006302686,-500.0,0.00284332,120]
[357322195,1744006302696,-500.0,0.00284332,120]
[357322196,1744006302706,-500.0,0.00284332,120]
[357322197,1744006302715,-500.0,0.00284332,120]
[357322198,1744006302724,-500.0,0.00284332,120]
[357322199,1744006302733,-500.0,0.00284332,120]
[357322200,1744006302742,-500.0,0.00284332,120]
[357322201,1744006302751,-500.0,0.00284332,120]
[357322202,1744006302761,-500.0,0.00284332,120]
[357322203,1744006302770,-500.0,0.00284332,120]
[357322204,1744006302780,-500.0,0.00284332,120]
[357322205,1744006302789,-500.0,0.00284332,120]
[357322206,1744006302798,-500.0,0.00284332,120]
[357322207,1744006302808,-500.0,0.00284332,120]
[357322208,1744006302817,-500.0,0.00284332,120]
[357322209,1744006302826,-500.0,0.00284332,120]
[357322210,1744006302835,-500.0,0.00284332,120]
[357322211,1744006302844,-500.0,0.00284332,120]
[357322212,1744006302853,-500.0,0.00284332,120]
[357322213,1744006302863,-500.0,0.00284332,120]
[357322214,1744006302873,-500.0,0.00284332,120]
[357322215,1744006302882,-500.0,0.00284332,120]
[357322216,1744006302891,-500.0,0.00284332,120]
[357322217,1744006302900,-500.0,0.00284332,120]
[357322218,1744006302910,-500.0,0.00284332,120]
[357322219,1744006302919,-500.0,0.00284332,120]
[357322220,1744006302928,-500.0,0.00284332,120]
[357322221,1744006302937,-500.0,0.00284332,120]
[357322222,1744006302946,-500.0,0.00284332,120]
[357322223,1744006302956,-500.0,0.00284332,120]
[357322224,1744006302965,-500.0,0.00284332,120]
[357322225,1744006302974,-500.0,0.00284332,120]
[357322226,1744006302984,-500.0,0.00284332,120]
[357322227,1744006302993,-500.0,0.00284332,120]
[357322228,1744006303002,-500.0,0.00284332,120]
[357322229,1744006303012,-500.0,0.00284332,120]
[357322230,1744006303021,-500.0,0.00284332,120]
[357322231,1744006303031,-500.0,0.00284332,120]
[357322232,1744006303040,-500.0,0.00284332,120]
[357322233,1744006303049,-537.0,0.00284332,120]
[357322234,1744006303058,-151.0,0.00284438,120]
[357322235,1744006303068,-497.34614365,0.00287416,120]
[357322236,1744006303077,-150.0,0.00290382,120]
[357322237,1744006303086,-500.0,0.00290657,120]
[357322238,1744006303095,-500.0,0.00290657,120]
[357322239,1744006303104,-500.0,0.00290657,120]
[357322240,1744006303114,-500.0,0.00290657,120]
[357322241,1744006303124,-500.0,0.00290657,120]
[357322242,1744006303134,-500.0,0.00290657,120]
[357322243,1744006303144,-500.0,0.00290657,120]
[357322244,1744006303154,-1894.41,0.00290657,120]
[357322245,1744006303163,-151.0,0.00291479,120]
[357322246,1744006303173,-500.0,0.00292805,120]
[357322247,1744006303182,-500.0,0.00292805,120]
[357322248,1744006303191,-500.0,0.00292805,120]
[357322249,1744006303201,-500.0,0.00292805,120]
[357322250,1744006303210,-500.0,0.00292805,120]
[357322251,1744006303219,-500.0,0.00292805,120]
[357322252,1744006303229,-504.14412375,0.00299239,120]
[357322253,1744006303238,-500.0,0.00299988,120]
[357322254,1744006303248,-500.0,0.00299988,120]
[357322255,1744006303258,-354.22,0.00299989,120]
[357322256,1744006303268,-500.0,0.00299989,120]
[357322257,1744006303278,-500.0,0.00299989,120]
[357322258,1744006303288,-500.0,0.00299989,120]
[357322259,1744006303297,-500.0,0.00299989,120]
[357322260,1744006303307,-500.0,0.00299989,120]
[357322261,1744006303317,-500.0,0.00299989,120]
[357322262,1744006303327,-500.0,0.00299989,120]
[357322263,1744006303338,-500.0,0.00299989,120]
[357322264,1744006303350,-1010.15665313,0.00299989,120]
[357322265,1744006303359,-500.0,0.00299989,120]
[357322266,1744006303368,-500.0,0.00299989,120]
[357322267,1744006303383,-500.0,0.00299989,120]
[357322268,1744006303392,-500.0,0.00299989,120]
[357322269,1744006303402,-500.0,0.00299989,120]
[357322270,1744006303412,-500.0,0.00299989,30]
[357322271,1744006303421,-170.77929866,0.00299989,2]
[357322272,1744006303431,-500.0,0.00299989,120]
[357322273,1744006303441,-500.0,0.00299989,120]
[357322274,1744006303451,-500.0,0.00299989,120]
[357322275,1744006303461,-500.0,0.00299989,120]
[357322276,1744006303471,-500.0,0.00299989,120]
[357322277,1744006303481,-218.47970842,0.00299989,120]
[357322278,1744006303491,-574.44614813,0.00299989,120]
[357322279,1744006303501,-500.0,0.00299989,120]
[357322280,1744006303510,-500.0,0.00299989,120]
[357322281,1744006303521,-500.0,0.00299989,120]
[357322282,1744006303530,-500.0,0.00299998,120]
[357322283,1744006303540,-500.0,0.00299998,120]
[357322284,1744006303549,-500.0,0.00299998,120]
[357322285,1744006303709,-500.0,0.00299998,120]
[357322286,1744006303720,-500.0,0.00299998,120]
[357322287,1744006303730,-500.0,0.00299998,120]
[357322288,1744006303740,-500.0,0.00299998,120]
[357322289,1744006303750,-453.71584847,0.00299999,120]
[357322290,1744006303760,-358.0,0.00299999,120]
[357322291,1744006303770,-322.76,0.00299999,120]
[357322292,1744006303779,-500.0,0.00299999,120]
[357322293,1744006303788,-500.0,0.00299999,120]
[357322294,1744006303798,-500.0,0.00299999,120]
[357322295,1744006303807,-500.0,0.00299999,120]
[357322296,1744006303817,-500.0,0.00299999,120]
[357322297,1744006303827,-98891.61,0.00299999,7]
[357322298,1744006303837,-500.0,0.00299999,120]
[357322299,1744006303846,-500.0,0.00299999,120]
[357322300,1744006303856,-500.0,0.00299999,120]
[357322301,1744006303865,-500.0,0.00299999,120]
[357322302,1744006303877,-500.0,0.00299999,120]
[357322303,1744006303888,-500.0,0.00299999,120]
[357322304,1744006303898,-300.0,0.00299999,120]
[357322305,1744006303908,-500.0,0.00299999,120]
[357322306,1744006303918,-500.0,0.00299999,120]
[357322307,1744006303928,-500.0,0.00299999,120]
[357322308,1744006303939,-255.2,0.00299999,120]
[357322309,1744006303948,-500.0,0.00299999,120]
[357322310,1744006303958,-500.0,0.00299999,120]
[357322311,1744006303967,-503.13,0.00299999,120]
[357322312,1744006303977,-500.0,0.00299999,120]
[357322313,1744006303986,-500.0,0.00299999,120]
[357322314,1744006303996,-500.0,0.00299999,120]
[357322315,1744006304005,-500.0,0.00299999,120]
[357322316,1744006304015,-500.0,0.00299999,120]
[357322317,1744006304025,-500.0,0.00299999,120]
[357322318,1744006304035,-500.0,0.00299999,120]
[357322319,1744006304044,-500.0,0.00299999,120]
[357322320,1744006304054,-500.0,0.00299999,120]
[357322321,1744006304064,-222.25,0.00299999,120]
[357322322,1744006304072,-364.94,0.00299999,120]
[357322323,1744006304082,-224.57,0.00299999,120]
[357322324,1744006304092,-583.24,0.00299999,120]
[357322325,1744006304101,-500.0,0.00299999,30]
[357322326,1744006304111,-606.12,0.00299999,120]
[357322327,1744006304120,-4214.68,0.00299999,120]
[357322328,1744006304130,-500.0,0.00299999,120]
[357322329,1744006304140,-500.0,0.00299999,120]
[357322330,1744006304149,-317.93,0.00299999,120]
[357322331,1744006304159,-500.0,0.00299999,120]
[357322332,1744006304168,-500.0,0.00299999,120]
[357322333,1744006304177,-500.0,0.00299999,120]
[357322334,1744006304186,-1894.41,0.00299999,120]
[357322335,1744006304196,-372.92,0.00299999,120]
[357322336,1744006304206,-500.0,0.00299999,120]
[357322337,1744006304216,-500.0,0.00299999,10]
[357322338,1744006304226,-500.0,0.00299999,120]
[357322339,1744006304235,-99800.0,0.003,120]
[357322340,1744006304245,-111083.58,0.003,120]
[357322341,1744006304254,-1275.8832,0.003,74]
[357322342,1744006304262,-500.0,0.003,120]
[357322343,1744006304269,-500.0,0.003,120]
[357322344,1744006304276,-500.0,0.003,120]
[357322345,1744006304284,-500.0,0.003,120]
[357322346,1744006304291,-500.0,0.003,120]
[357322347,1744006304298,-1009.0,0.003,120]
[357322348,1744006304305,-1009.0,0.003,120]
[357322349,1744006304313,-1009.0,0.003,120]
[357322350,1744006304319,-1009.0,0.003,120]
[357322351,1744006304326,-1009.0,0.003,120]
[357322352,1744006304334,-1009.0,0.003,120]
[357322353,1744006304342,-1009.0,0.003,120]
[357322354,1744006304354,-1009.0,0.003,120]
[357322355,1744006304361,-1009.0,0.003,120]
[357322356,1744006304368,-150.0,0.003,120]
[357322357,1744006304377,-212.25648908,0.003,120]
[357322358,1744006304385,-150.0,0.003,2]
[357322359,1744006304395,-150.0,0.003,120]
[357322360,1744006304405,-150.0,0.003,120]
[357322361,1744006304415,-151.0,0.00300959,120]
[357322362,1744006304425,-500.0,0.00303738,120]
[357322363,1744006304434,-500.0,0.00307492,120]
[357322364,1744006304443,-151.0,0.00308384,120]
[357322365,1744006304453,-500.0,0.00309999,120]
[357322366,1744006304462,-500.0,0.00309999,120]
[357322367,1744006304472,-500.0,0.00309999,120]
[357322368,1744006304482,-2891.08,0.0031,120]
[357322369,1744006304492,-151.0,0.00310438,120]
[357322370,1744006304503,-500.0,0.00312121,120]
[357322371,1744006304514,-211.02431761,0.00316384,15]
[357322372,1744006304524,-151.0,0.00319918,120]
[357322373,1744006304534,-500.0,0.00324781,120]
[357322374,1744006304543,-151.0,0.00329397,120]
[357322375,1744006304553,-150.0,0.00330264,120]
[357322376,1744006304563,-151.0,0.00332329,120]
[357322377,1744006304572,-500.0,0.00338492,120]
[357322378,1744006304582,-151.0,0.00338877,120]
[357322379,1744006304592,-500.0,0.0034187,120]
[357322380,1744006304602,-500.0,0.00344211,120]
[357322381,1744006304611,-151.0,0.00348356,120]
[357322382,1744006304622,-500.0,0.00349362,120]
[357322383,1744006304632,-500.0,0.00353672,120]
[357322384,1744006304642,-500.0,0.0035534,120]
[357322385,1744006304651,-151.0,0.00356274,120]
[357322386,1744006304661,-500.0,0.0035666,120]
[357322387,1744006304671,-500.0,0.00357439,120]
[357322388,1744006304681,-151.0,0.00357836,120]
[357322389,1744006304691,-250.0,0.0036,120]
[357322390,1744006304700,-500.0,0.00366543,120]
[357322391,1744006304710,-151.0,0.00367315,120]
[357322392,1744006304720,-500.0,0.00369999,120]
[357322393,1744006304730,-500.0,0.00369999,120]
[357322394,1744006304739,-500.0,0.00369999,120]
[357322395,1744006304749,-2891.08,0.0037,120]
[357322396,1744006304758,-500.0,0.00372057,120]
[357322397,1744006304768,-150.0,0.00372624,120]
[357322398,1744006304777,-211.02431761,0.00373087,15]
[357322399,1744006304787,-504.0,0.00377315,2]
[357322400,1744006304797,-151.0,0.00380219,120]
[357322401,1744006304807,-500.0,0.0038496,120]
[357322402,1744006304816,-1122.33,0.00386,103]
[357322403,1744006304826,-1122.33,0.00386,103]
[357322404,1744006304836,-500.0,0.00387958,120]
[357322405,1744006304846,-500.0,0.00388965,120]
[357322406,1744006304855,-500.0,0.00392666,120]
[357322407,1744006304864,-500.0,0.00392666,120]
[357322408,1744006304876,-500.0,0.00392666,120]
[357322409,1744006304885,-500.0,0.00392667,120]
[357322410,1744006304895,-500.0,0.00392667,120]
[357322411,1744006304905,-400.0,0.00392667,120]
[357322412,1744006304915,-500.0,0.00392667,120]
[357322413,1744006304925,-450.0,0.00392667,120]
[357322414,1744006304934,-500.0,0.00392667,120]
[357322415,1744006304944,-1894.41,0.00392667,120]
[357322416,1744006304954,-1894.41,0.00392667,120]
[357322417,1744006304963,-500.0,0.0039335,120]
[357322418,1744006304973,-500.0,0.0039335,120]
[357322419,1744006304982,-500.0,0.0039335,120]
[357322420,1744006304992,-500.0,0.00398107,120]
[357322421,1744006305002,-151.0,0.00404164,120]
[357322422,1744006305011,-500.0,0.00421467,120]
[357322423,1744006305021,-500.0,0.0042322,120]
[357322424,1744006305031,-151.0,0.0042811,120]
[357322425,1744006305041,-211.02431761,0.0042979,15]
[357322426,1744006305050,-500.0,0.00429999,120]
[357322427,1744006305061,-500.0,0.00429999,120]
[357322428,1744006305070,-500.0,0.00429999,120]
[357322429,1744006305080,-2891.08,0.0043,120]
[357322430,1744006305090,-500.0,0.00431226,120]
[357322431,1744006305099,-500.0,0.00440653,120]
[357322432,1744006305109,-500.0,0.00445432,120]
[357322433,1744006305119,-500.0,0.00451351,120]
[357322434,1744006305130,-500.0,0.00451649,120]
[357322435,1744006305140,-150.0,0.00451689,120]
[357322436,1744006305149,-151.0,0.00452055,120]
[357322437,1744006305159,-500.0,0.00459983,120]
[357322438,1744006305169,-250.0,0.0046,120]
[357322439,1744006305179,-162.65,0.0046,120]
[357322440,1744006305189,-500.0,0.00460635,120]
[357322441,1744006305199,-500.0,0.00467996,120]
[357322442,1744006305208,-150.0,0.0047114,120]
[357322443,1744006305218,-152.0,0.00472706,3]
[357322444,1744006305227,-500.0,0.00473299,120]
[357322445,1744006305237,-151.0,0.00476,120]
[357322446,1744006305246,-58380.44079194,0.0047777,120]
[357322447,1744006305256,-500.0,0.00485044,120]
[357322448,1744006305266,-211.02431761,0.00486494,15]
[357322449,1744006305275,-501.71644041,0.00487798,120]
[357322450,1744006305285,-1228.2237,0.0049,79]
[357322451,1744006305294,-450.0,0.0049047,120]
[357322452,1744006305303,-500.0,0.0049047,120]
[357322453,1744006305313,-500.0,0.0049047,120]
[357322454,1744006305322,-500.0,0.00490471,120]
[357322455,1744006305331,-500.0,0.00490471,120]
[357322456,1744006305345,-500.0,0.00490471,120]
[357322457,1744006305355,-500.0,0.00490471,120]
[357322458,1744006305363,-1894.41,0.00490471,120]
[357322459,1744006305375,-500.0,0.00498212,120]
[357322460,1744006305385,-500.0,0.00498212,120]
[357322461,1744006305395,-444.0,0.00499945,120]
[357322462,1744006305404,-2260.52627184,0.005,30]
[357322463,1744006305413,-620.9179,0.005,120]
[357322464,1744006305423,-1008.0,0.005,120]
[357322465,1744006305432,-152.0,0.0051063,4]
[357322466,1744006305442,-500.0,0.00511138,120]
[357322467,1744006305451,-500.0,0.0051493,120]
[357322468,1744006305460,-500.0,0.00515304,120]
[357322469,1744006305470,-211.02431761,0.00543197,15]
[357322470,1744006305479,-500.0,0.00546985,120]
[357322471,1744006305489,-500.0,0.00546985,120]
[357322472,1744006305498,-445.36,0.00546986,30]
[357322473,1744006305508,-784.9,0.00546986,30]
[357322474,1744006305517,-445.21,0.00546986,30]
[357322475,1744006305526,-784.9,0.00546986,30]
[357322476,1744006305536,-445.21,0.00546986,30]
[357322477,1744006305546,-784.9,0.00546986,30]
[357322478,1744006305555,-445.21,0.00546986,30]
[357322479,1744006305565,-769.94,0.00546986,30]
[357322480,1744006305574,-443.66,0.00546986,30]
[357322481,1744006305584,-500.0,0.00547943,120]
[357322482,1744006305593,-500.0,0.00547944,120]
[357322483,1744006305603,-500.0,0.00547944,120]
[357322484,1744006305612,-500.0,0.00547944,120]
[357322485,1744006305621,-500.0,0.00547944,120]
[357322486,1744006305631,-500.0,0.00547944,120]
[357322487,1744006305640,-500.0,0.00547944,120]
[357322488,1744006305650,-500.0,0.00547944,120]
[357322489,1744006305659,-500.0,0.00547944,120]
[357322490,1744006305668,-500.0,0.00547944,120]
[357322491,1744006305677,-500.0,0.00547944,120]
[357322492,1744006305687,-500.0,0.00547944,120]
[357322493,1744006305696,-242.11020196,0.00547944,120]
[357322494,1744006305706,-512.2,0.00547944,120]
[357322495,1744006305716,-500.0,0.00547944,120]
[357322496,1744006305725,-500.0,0.00547944,120]
[357322497,1744006305735,-500.0,0.00547944,30]
[357322498,1744006305744,-4214.68,0.00547944,120]
[357322499,1744006305753,-500.0,0.00547944,120]
[357322500,1744006305762,-500.0,0.00547944,120]
[357322501,1744006305772,-500.0,0.00547944,120]
[357322502,1744006305781,-516.70846896,0.00547944,10]
[357322503,1744006305790,-500.0,0.00547944,120]
[357322504,1744006305799,-1000.0,0.00547945,120]
[357322505,1744006305808,-1000.0,0.00547945,120]
[357322506,1744006305818,-1000.0,0.00547945,120]
[357322507,1744006305827,-1000.0,0.00547945,120]
[357322508,1744006305836,-305.67,0.00547945,30]
[357322509,1744006305845,-444.71,0.00547945,30]
[357322510,1744006305854,-150.0,0.00547945,30]
[357322511,1744006305863,-784.9,0.00547945,30]
[357322512,1744006305873,-1000.04,0.00547945,30]
[357322513,1744006305883,-150.0,0.00547945,30]
[357322514,1744006305893,-445.21,0.00547945,30]
[357322515,1744006305902,-444.71,0.00547945,30]
[357322516,1744006305911,-444.71,0.00547945,30]
[357322517,1744006305921,-784.9,0.00547945,30]
[357322518,1744006305930,-150.0,0.00547945,30]
[357322519,1744006305940,-444.71,0.00547945,30]
[357322520,1744006305950,-1000.04,0.00547945,30]
[357322521,1744006305959,-150.0,0.00547945,30]
[357322522,1744006305968,-445.21,0.00547945,30]
[357322523,1744006305977,-784.9,0.00547945,30]
[357322524,1744006305986,-150.0,0.00547945,30]
[357322525,1744006305996,-1000.04,0.00547945,30]
[357322526,1744006306006,-150.0,0.00547945,30]
[357322527,1744006306015,-150.0,0.00547945,30]
[357322528,1744006306025,-1000.04,0.00547945,30]
[357322529,1744006306035,-150.0,0.00547945,30]
[357322530,1744006306045,-1000.04,0.00547945,30]
[357322531,1744006306054,-1000.04,0.00547945,30]
[357322532,1744006306063,-1000.04,0.00547945,30]
[357322533,1744006306074,-1000.04,0.00547945,30]
[357322534,1744006306083,-1000.04,0.00547945,30]
[357322535,1744006306092,-1000.04,0.00547945,30]
[357322536,1744006306101,-1000.04,0.00547945,30]
[357322537,1744006306110,-1000.04,0.00547945,30]
[357322538,1744006306119,-1000.04,0.00547945,30]
[357322539,1744006306130,-301.33,0.00547945,30]
[357322540,1744006306139,-150.0,0.00547945,30]
[357322541,1744006306149,-444.71,0.00547945,30]
[357322542,1744006306291,-150.0,0.00547945,30]
[357322543,1744006306300,-445.21,0.00547945,30]
[357322544,1744006306310,-150.0,0.00547945,30]
[357322545,1744006306319,-1000.04,0.00547945,30]
[357322546,1744006306329,-444.71,0.00547945,30]
[357322547,1744006306339,-347.97,0.00547945,30]
[357322548,1744006306350,-1000.04,0.00547945,30]
[357322549,1744006306360,-784.9,0.00547945,30]
[357322550,1744006306370,-150.0,0.00547945,30]
[357322551,1744006306380,-150.0,0.00547945,30]
[357322552,1744006306391,-150.0,0.00547945,30]
[357322553,1744006306400,-150.0,0.00547945,30]
[357322554,1744006306410,-444.71,0.00547945,30]
[357322555,1744006306419,-150.0,0.00547945,30]
[357322556,1744006306432,-150.0,0.00547945,30]
[357322557,1744006306441,-444.71,0.00547945,30]
[357322558,1744006306451,-445.21,0.00547945,30]
[357322559,1744006306460,-150.0,0.00547945,30]
[357322560,1744006306469,-150.0,0.00547945,30]
[357322561,1744006306478,-1000.04,0.00547945,30]
[357322562,1744006306487,-150.0,0.00547945,30]
[357322563,1744006306497,-347.97,0.00547945,30]
[357322564,1744006306506,-150.0,0.00547945,30]
[357322565,1744006306516,-150.0,0.00547945,30]
[357322566,1744006306525,-150.0,0.00547945,30]
[357322567,1744006306534,-784.9,0.00547945,30]
[357322568,1744006306543,-1000.04,0.00547945,30]
[357322569,1744006306553,-400.3,0.00547945,30]
[357322570,1744006306562,-150.0,0.00547945,30]
[357322571,1744006306572,-445.21,0.00547945,30]
[357322572,1744006306581,-150.0,0.00547945,30]
[357322573,1744006306591,-347.97,0.00547945,30]
[357322574,1744006306600,-1000.04,0.00547945,30]
[357322575,1744006306610,-784.9,0.00547945,30]
[357322576,1744006306620,-150.0,0.00547945,30]
[357322577,1744006306629,-150.0,0.00547945,30]
[357322578,1744006306639,-445.21,0.00547945,30]
[357322579,1744006306648,-150.0,0.00547945,30]
[357322580,1744006306658,-347.97,0.00547945,30]
[357322581,1744006306668,-1000.04,0.00547945,30]
[357322582,1744006306678,-1000.04,0.00547945,30]
[357322583,1744006306687,-784.9,0.00547945,30]
[357322584,1744006306697,-445.21,0.00547945,30]
[357322585,1744006306707,-1000.04,0.00547945,30]
[357322586,1744006306718,-150.0,0.00547945,30]
[357322587,1744006306727,-445.21,0.00547945,30]
[357322588,1744006306737,-784.9,0.00547945,30]
[357322589,1744006306747,-1000.04,0.00547945,30]
[357322590,1744006306757,-1000.04,0.00547945,30]
[357322591,1744006306767,-353.93,0.00547945,30]
[357322592,1744006306777,-784.9,0.00547945,30]
[357322593,1744006306787,-1000.04,0.00547945,30]
[357322594,1744006306797,-445.21,0.00547945,30]
[357322595,1744006306807,-445.21,0.00547945,30]
[357322596,1744006306818,-784.9,0.00547945,30]
[357322597,1744006306827,-1000.04,0.00547945,30]
[357322598,1744006306837,-784.9,0.00547945,30]
[357322599,1744006306847,-445.21,0.00547945,30]
[357322600,1744006306857,-1000.04,0.00547945,30]
[357322601,1744006306866,-445.21,0.00547945,30]
[357322602,1744006306877,-1000.04,0.00547945,30]
[357322603,1744006306886,-1000.04,0.00547945,30]
[357322604,1744006306895,-445.21,0.00547945,30]
[357322605,1744006306905,-1000.04,0.00547945,30]
[357322606,1744006306915,-445.21,0.00547945,30]